Cogmind - Beta 11 @@@ ROGUE MODE // 2022.03.26 @ 12:05:21 Player: leiavoia Result: Destroyed by X-87 Electro with Compact HERF Cannon Performance ------------- Evolutions (7) 3500 Regions Visited (15) 3000 Robots Destroyed (255) 1275 Value Destroyed (9766) 9766 Prototype IDs (29) 580 Alien Tech Used (3) 600 Bonus (3859) 3859 TOTAL SCORE: 22580 Bonus ------- High Alert Combat Kills 775 Follower Combat Kills 111 Entered DSFs 500 Met Zhirov 300 Found Hidden Lab 3000 Friendly Fire -827 Cogmind --------- Core Integrity 0/1300 Matter 102/300 Energy 99/100 System Corruption 97% Temperature Warm (157) Movement Core (50) Location -3/Research Parts ------- > --- POWER (2) -------- (None) > --- PROPULSION (6) --- (None) > --- UTILITY (8) ------ (None) > --- WEAPON (6) ------- (None) > --- INVENTORY (5) ---- Advanced Coolant Injector Large Storage Unit Potential Cannon Peak State ------------ > --- POWER ------------ Light Antimatter Reactor Light Antimatter Reactor > --- PROPULSION ------- Flexi-carbon Leg Flexi-carbon Leg Myomer Leg Myomer Leg Advanced Myomer Leg Advanced Myomer Leg > --- UTILITY ---------- Advanced Cooling System High-capacity Storage Unit Advanced Signal Interpreter Improved Targeting Computer Improved Medium Armor Plating Heavy Regenerative Plating Quantum Router > --- WEAPON ----------- Railgun Railgun Helical Railgun Heavy Mass Driver Heavy Shock Bomb Launcher > --- INVENTORY -------- Flexi-carbon Leg Flexi-carbon Leg Advanced Myomer Leg Advanced Myomer Leg Advanced Myomer Leg Wheel Armored Wheel Advanced Heat Sink Advanced Coolant Injector Large Storage Unit Advanced Energy Well High-capacity Matter Pod Advanced Gravity Neutralizer Quantum Shading Machine Advanced Sensor Array Experimental Weapon Shielding Potential Cannon Heavy Shock Bomb Launcher Impact Mace [Rating: 150] Favorites ----------- Power Particle Reactor Engine Improved Ion Engine Power Core Reinforced Fission Core Reactor Particle Reactor Propulsion Light Treads Treads Light Treads Leg Flexi-carbon Leg Wheel Compact Wheel Hover Unit Antigrav Array Flight Unit Cooled Nuclear Pulse Thruster Utility High-capacity Storage Unit Device Improved Terrain Scanner Storage High-capacity Storage Unit Processor Improved Targeting Computer Hackware Quantum Router Protection Improved Medium Armor Plating Weapon Falx Energy Gun Plasma Rifle Energy Cannon Heavy Plasma Cannon Ballistic Gun Railgun Ballistic Cannon Improved Light Cannon Launcher Mini Grenade Launcher Impact Weapon Impact Mace Slashing Weapon Falx Build | -11 -10 -9 -8 -7 -6 -6 -5 -5 -5 -5 -4 -4 -4 -4 -3 ------- Run | Scr Mat Mat Mat Fac Fac DSF Fac Upp Upp Zhi Pro Fac Arm Lab Res Slots Evolved 14 | . . 2 2 2 2 . 2 . . . . 2 . . 2 Power 1 | . . . . . . . . . . . . . . . 1 Propulsion 4 | . . . 1 1 . . 1 . . . . 1 . . . Utility 5 | . . 1 1 . 2 . . . . . . . . . 1 Weapon 4 | . . 1 . 1 . . 1 . . . . 1 . . . Parts Attached 295 | 1 5 23 23 26 6 17 10 31 10 8 17 40 1 18 59 Power 22 | . . 3 2 1 . 1 1 3 . . 1 2 . 1 7 Engine 8 | . . 2 2 1 . 1 . 2 . . . . . . . Core 4 | . . 1 . . . . 1 . . . 1 1 . . . Reactor 10 | . . . . . . . . 1 . . . 1 . 1 7 Propulsion 68 | . 2 6 5 3 1 3 5 2 3 2 5 8 . 3 20 Treads 24 | . . 4 5 3 1 3 5 2 . . . 1 . . . Leg 32 | . 2 2 . . . . . . 3 . 2 4 . 2 17 Wheel 5 | . . . . . . . . . . . 1 2 . 1 1 Hover 2 | . . . . . . . . . . . . . . . 2 Flight 5 | . . . . . . . . . . 2 2 1 . . . Utility 95 | 1 2 3 10 9 4 3 2 14 4 3 4 17 1 6 12 Device 45 | 1 1 2 5 5 2 1 . 6 2 . 2 9 1 3 5 Storage 9 | . 1 1 1 . . . . 3 1 1 . 1 . . . Processor 12 | . . . . 1 2 1 . . . 1 1 4 . . 2 Hackware 5 | . . . . 1 . . 1 . . . . 2 . . 1 Protection 24 | . . . 4 2 . 1 1 5 1 1 1 1 . 3 4 Artifact . | . . . . . . . . . . . . . . . . Weapon 110 | . 1 11 6 13 1 10 2 12 3 3 7 13 . 8 20 Energy Gun 27 | . 1 6 1 5 1 1 . 2 3 3 1 1 . 2 . Energy Cannon 10 | . . . 1 1 . 5 1 . . . 1 . . 1 . Ballistic Gun 31 | . . 4 . 2 . 2 1 2 . . 2 6 . 2 10 Ballistic Cannon 20 | . . . 4 . . . . 3 . . 2 4 . 2 5 Launcher 12 | . . 1 . 3 . 1 . 1 . . . 2 . 1 3 Special Weapon . | . . . . . . . . . . . . . . . . Impact Weapon 2 | . . . . . . . . . . . . . . . 2 Slashing Weapon 8 | . . . . 2 . 1 . 4 . . 1 . . . . Piercing Weapon . | . . . . . . . . . . . . . . . . Special Melee Weapon . | . . . . . . . . . . . . . . . . Unidentified Prototypes 19 | . . 1 1 2 . . . . . 3 . . 1 5 6 Corrupted Parts 14 | . . 1 . . . . . . . . 1 . . 4 8 System Corruption 81 | . . 1 . . . . . . . . 3 . . 17 60 Parts Lost 125 | . . 2 1 7 . 2 4 19 4 . 19 15 . 1 51 Power 10 | . . 1 . . . . 1 2 . . 1 1 . . 4 Propulsion 40 | . . . . 1 . 1 3 5 2 . 6 6 . . 16 Utility 31 | . . . 1 1 . . . 5 2 . 4 3 . 1 14 Weapon 44 | . . 1 . 5 . 1 . 7 . . 8 5 . . 17 Highest Loss Streak 30 | . . 1 1 6 . 1 3 11 3 . 7 11 . 1 30 To Critical Strikes 2 | . . . . . . . . . . . 1 . . . 1 Average Slot Usage (%) 85 | . 100 98 99 98 98 99 98 70 74 75 92 85 89 86 82 Engine 2 | . 14 9 9 7 6 6 3 . . . . . . . . Reactor 3 | . . . . . . . . 4 5 5 3 1 5 5 7 Treads 9 | . . 12 27 29 24 26 28 5 2 . . 2 5 4 . Leg 6 | . 28 8 . . . . . . 5 17 10 14 . 3 13 Wheel 1 | . . . . . . . . . . . . 4 10 8 4 Flight 1 | . . . . . . . . . . 5 15 1 5 5 1 Device 13 | . 14 21 11 5 13 6 5 16 13 23 20 12 10 6 6 Storage 6 | . 14 11 9 7 6 6 5 4 8 5 5 6 5 5 3 Processor 3 | . . . . 3 11 19 13 1 . 1 6 3 15 10 8 Hackware 1 | . . . . 6 1 . 2 . . . . 4 . . 3 Protection 5 | . . . 15 5 6 6 5 8 6 3 . 1 . 5 4 Energy Gun 7 | . 14 18 1 6 13 6 . 4 15 . 9 6 5 4 1 Energy Cannon 1 | . . . 6 2 . 7 11 . . . . . . . . Ballistic Gun 5 | . 14 14 . 2 6 6 10 2 . . 3 4 21 13 15 Ballistic Cannon 4 | . . . 18 14 . . . 5 1 . 2 7 . 2 1 Slashing Weapon 5 | . . . . 1 6 1 . 9 11 11 6 7 5 5 . Naked Turns 15 | . . . . . . . . 1 . . . . . . 14 Heaviest Build 141 | 13 28 58 83 87 66 83 87 95 95 88 88 116 89 112 141 Greatest Support 150 | 20 20 40 63 83 83 92 121 116 56 50 55 88 32 48 150 Greatest Overweight (x) 11 | . 1 1 1 1 . . . 3 5 11 8 3 2 6 10 Average Overweight (x) 1 | . . . . . . . . 2 2 1 2 1 2 3 3 Largest Inventory Capacity 20 | 8 15 20 20 20 20 20 20 20 20 20 20 20 20 20 20 Average Capacity 19 | 8 14 15 20 20 20 20 20 19 20 20 20 20 20 20 18 Most Carried 20 | 8 15 16 20 20 19 20 20 19 17 20 20 20 20 20 20 Average Carried 16 | 7 11 14 19 19 18 19 19 12 15 18 17 17 19 19 17 Final Capacity 20 | 8 15 20 20 20 20 20 20 20 20 20 20 20 20 20 5 Final Carried 20 | 8 15 16 20 20 19 20 19 14 17 20 14 20 19 20 4 Class Distribution -------------------- 16% | Scavenger-Mutant 15% | Mutant 14% | Scavenger-Tank 13% | Scavenger-Skirmisher 10% | Scavenger-Assassin 5% | Tank 4% | Gunner 4% | Skirmisher 4% | Hacker-Mutant Dominant Class ---------------- Mutant | -10/Materials Scavenger-Skirmisher | -9/Materials Scavenger-Tank | -8/Materials Mutant | -7/Factory Assassin | -6/Factory Gunner | -6/DSF Gunner | -5/Factory Scavenger-Assassin | -5/Upper Caves Scavenger-Tank | -5/Upper Caves Mutant | -5/Zhirov Scavenger-Skirmisher | -4/Proximity Caves Scavenger-Mutant | -4/Factory Gunner | -4/Armory Scavenger-Gunner | -4/Lab Hacker-Executioner | -3/Research Resources | -11 -10 -9 -8 -7 -6 -6 -5 -5 -5 -5 -4 -4 -4 -4 -3 ----------- Run | Scr Mat Mat Mat Fac Fac DSF Fac Upp Upp Zhi Pro Fac Arm Lab Res Matter Collected 7940 | 260 86 632 545 480 . 208 453 1038 211 82 331 433 . 498 2683 Remotely . | . . . . . . . . . . . . . . . . Salvage Created 11690 | 288 220 1178 704 601 . 443 613 981 399 388 556 1151 . 225 3943 Parts 548 | 25 13 79 31 46 . 22 24 30 14 1 29 53 . 7 174 Haulers Intercepted 10 | . . 2 4 . . . . . . . . . . . 4 Recyclers Shooed 11 | . . 2 2 1 . . . . . . . 1 . . 5 Parts Field Recycled . | . . . . . . . . . . . . . . . . Retrieved Matter . | . . . . . . . . . . . . . . . . Parts Self-Destructed 56 | . . . . . . . . 23 10 . 23 . . . . Prevented 6 | . . . . . . . . . 2 . 4 . . . . Kills | -11 -10 -9 -8 -7 -6 -6 -5 -5 -5 -5 -4 -4 -4 -4 -3 ------- Run | Scr Mat Mat Mat Fac Fac DSF Fac Upp Upp Zhi Pro Fac Arm Lab Res Combat Hostiles Destroyed 184 | . 5 30 14 15 . 13 14 19 8 . 14 12 . 3 37 Melee 4 | . . . . . . . . 1 . . 3 . . . . Guns 82 | . 4 26 . 5 . 2 2 7 6 . 5 1 . 1 23 Cannons 53 | . . . 13 3 . 5 4 7 2 . 5 5 . 1 8 AOE 35 | . 1 4 . 7 . 6 8 3 . . 1 1 . 1 3 Classes Destroyed 19 | 3 4 3 2 1 . 2 . 2 . . . 1 . . 1 Worker 18 | 2 . . . 2 . . . . . . . 6 . . 8 Builder 11 | . 1 1 . 1 . . . . . . . 3 . . 5 Tunneler 9 | 7 . . . 1 . . . . . . . . . . 1 Hauler 10 | . . 2 4 . . . . . . . . . . . 4 Recycler 13 | 1 1 1 1 2 . . . . . . . 1 . . 6 Mechanic 1 | . . 1 . . . . . . . . . . . . . Operator 3 | . 1 . . 1 . . . . . . . . . . 1 Watcher 3 | . . . . . . . . . . . . 1 . . 2 Swarmer 50 | . 2 11 2 7 . 7 4 4 5 . 8 . . . . Saboteur 1 | . . . . . . . . . . . . . . . 1 Grunt 72 | . 3 14 6 5 . 3 9 8 2 . 3 4 . 3 12 Brawler 4 | . . . . . . . . 3 . . . . . . 1 Duelist 4 | . . . 1 . . . . 2 . . 1 . . . . Sentry 17 | . . 5 4 1 . . 1 2 . . 1 1 . . 2 Specialist 4 | . . . . . . 2 . . . . . . . . 2 Hunter 9 | . . . 1 . . . . . . . . 2 . . 6 Programmer 21 | . . . . 2 . . . 1 1 . 1 4 . . 12 Heavy 3 | . . . . . . 1 . . . . . 1 . . 1 Thug 1 | . . . . . . . 1 . . . . . . . . Mutant 1 | . . . . . . . . 1 . . . . . . . Best Kill Streak 18 | 4 6 10 5 5 . 7 4 8 5 . 4 18 . 2 13 Combat Bots Only 9 | . 3 7 5 3 . 7 4 8 5 . 4 6 . 2 9 Max Kills in Single Turn 5 | 1 4 5 1 5 . 3 3 2 1 . 1 4 . 1 4 Gunslinging 1 | . . . . . . . . . . . . . . . 1 Exploded 3 | . 1 2 . 3 . 3 3 1 . . 1 1 . 1 2 Melee 1 | . . . . . . . . 1 . . 1 . . . . Uniques/NPCs Destroyed . | . . . . . . . . . . . . . . . . Combat | -11 -10 -9 -8 -7 -6 -6 -5 -5 -5 -5 -4 -4 -4 -4 -3 -------- Run | Scr Mat Mat Mat Fac Fac DSF Fac Upp Upp Zhi Pro Fac Arm Lab Res Damage Taken 23138 | . 399 878 1280 1226 . 1304 1405 2743 662 . 1479 2157 . 501 9104 Core 2867 | . 171 129 152 131 . 123 143 179 34 . 171 316 . . 1318 Absorbed by Shields . | . . . . . . . . . . . . . . . . Redirected to Shielding 167 | . . . . . . . . . . . . . . 67 100 Regen/Repaired (Parts) 1215 | . . . . 119 121 . 123 . . . . . . . 852 Core Remaining (%) 67 | 100 31 67 72 81 . 85 . . . . 47 . . 60 . Volleys Fired 460 | 20 18 61 50 28 . 31 19 34 12 . 28 23 . 21 115 Largest 6 | 2 2 3 3 4 . 4 5 5 3 . 4 5 . 5 6 Hottest 322 | 70 70 124 158 197 . 205 276 299 201 . 201 322 . 290 263 Shots Fired 1285 | 40 34 153 118 80 . 67 59 102 37 . 81 54 . 70 390 Gun 849 | 40 34 151 1 38 . 31 20 46 28 . 61 23 . 47 329 Cannon 390 | . . . 117 39 . 31 30 50 9 . 20 25 . 21 48 Launcher 46 | . . 2 . 3 . 5 9 6 . . . 6 . 2 13 Special . | . . . . . . . . . . . . . . . . Kinetic 827 | 20 16 71 90 48 . 15 20 69 9 . 42 33 . 47 347 Thermal 356 | 20 16 41 27 29 . 44 30 27 24 . 32 15 . 21 30 Explosive 23 | . . 2 . 1 . 5 9 6 . . . . . . . Electromagnetic 79 | . 2 39 1 2 . 3 . . 4 . 7 6 . 2 13 Robot Hit Streak 20 | 8 7 11 6 7 . 7 5 9 9 . 10 6 . 8 20 Robot Miss Streak 5 | 3 5 5 2 4 . 3 2 4 1 . 4 5 . 5 5 Penetration Max 2 | . . . . . . . 1 1 . . 1 . . 1 2 Secondary Targets 17 | . 1 4 . . . . . . 1 . 1 . . . 10 Max Gunslinging Chain 2 | . 1 1 . . . . . . 1 . 1 . . . 2 Shots Hit Robots 795 | 23 23 97 73 44 . 41 32 61 29 7 58 27 . 36 244 Core Hits 451 | 11 9 53 29 30 . 29 32 39 13 3 28 36 . 18 121 Critical Kills 6 | . . . 1 . . . . 1 . . . 1 . 1 2 Critical Parts Destroyed 11 | . . . . . . . . . . . . 2 . 4 5 Critical Strikes 40 | 1 1 3 3 2 . . . 5 1 . 4 5 . 5 10 Burn 9 | 1 1 3 . 2 . . . . 1 . 1 . . . . Meltdown 2 | . . . 1 . . . . 1 . . . . . . . Destroy 13 | . . . . . . . . . . . . 3 . 5 5 Blast 11 | . . . 2 . . . . 2 . . 2 2 . . 3 Smash 2 | . . . . . . . . . . . . . . . 2 Sever 3 | . . . . . . . . 2 . . 1 . . . . Melee Attacks 117 | . . . . 2 . 1 . 14 8 7 11 42 1 3 28 Impact 25 | . . . . . . . . . . . . . . . 25 Slashing 92 | . . . . 2 . 1 . 14 8 7 11 42 1 3 3 Piercing . | . . . . . . . . . . . . . . . . Sneak Attacks 14 | . . . . . . . . 6 . . . 3 . . 5 Combat Hostiles . | . . . . . . . . . . . . . . . . Follow-up Attacks 5 | . . . . . . . . . 1 1 3 . . . . Damage Inflicted 29327 | 310 667 1929 1601 1713 . 1548 1723 3136 771 628 1506 2721 . 871 10203 Guns 11908 | 310 304 1361 11 478 . 442 270 609 428 . 782 337 . 529 6047 Cannons 7645 | . . . 1590 370 . 658 644 1038 237 . 414 793 . 198 1703 Explosions 7281 | . 363 567 . 865 . 448 809 888 . . 75 1301 . 144 1821 Melee 2447 | . . . . . . . . 601 106 628 235 267 . . 610 Ramming 46 | . . 1 . . . . . . . . . 23 . . 22 Kinetic 13624 | 122 158 542 1171 491 . 212 270 1051 237 . 615 878 . 559 7318 Thermal 7704 | 188 481 504 419 1024 . 866 644 596 346 . 527 571 . 168 1370 Explosive 2811 | . . 485 . 181 . 448 809 888 . . . . . . . Electromagnetic 2695 | . 28 397 11 17 . 22 . . 82 . 129 982 . 144 883 Impact 520 | . . . . . . . . . . . . . . . 520 Slashing 1927 | . . . . . . . . 601 106 628 235 267 . . 90 Piercing . | . . . . . . . . . . . . . . . . Highest Corruption 97 | . . 8 . 4 . 4 1 5 6 6 2 4 4 27 97 Average Corruption 6 | . . 5 . 2 . 3 1 4 5 6 1 3 4 14 24 Corruption Purged . | . . . . . . . . . . . . . . . . Corruption Blocked . | . . . . . . . . . . . . . . . . Effects 213 | . . 19 . 9 . 1 3 56 45 10 1 4 4 15 46 Message Errors 50 | . . 6 . 3 . . 3 8 14 2 . . 3 4 7 Matter Fused 45 | . . 2 . . . 1 . 15 11 6 . . . 4 6 Heat Flow Errors 20 | . . 2 . 1 . . . 2 8 1 . . . 2 4 Energy Discharges 22 | . . 2 . . . . . 15 3 . 1 . . . 1 Parts Rejected 5 | . . 1 . . . . . 1 . . . . . . 3 Data Loss (minor) 25 | . . 3 . 2 . . . 7 4 1 . 2 . 2 4 Data Loss (major) 8 | . . 1 . . . . . 3 1 . . . 1 1 1 Misfires 7 | . . . . 2 . . . 1 2 . . 2 . . . Alerts 5 | . . . . 1 . . . 2 1 . . . . . 1 Misdirections 4 | . . . . . . . . . . . . . . . 4 Weapon Failures 22 | . . 2 . . . . . 2 1 . . . . 2 15 Overload Shots . | . . . . . . . . . . . . . . . . Overflow Damage 1416 | . 92 26 2 150 . 57 13 121 16 138 51 208 . . 542 Projectiles 284 | . . . 2 . . 31 13 17 16 . . 136 . . 69 Explosions 460 | . 92 26 . 150 . 26 . 10 . . 34 20 . . 102 Melee 672 | . . . . . . . . 94 . 138 17 52 . . 371 Knockbacks 44 | . . . 10 2 . . . 8 1 . 6 3 . 1 13 Impact . | . . . . . . . . . . . . . . . . Kinetic 40 | . . . 10 2 . . . 8 1 . 4 3 . 1 11 Secondary 4 | . . . . . . . . . . . 2 . . . 2 Self-Inflicted Damage 651 | . 114 177 . 114 . 11 7 159 . . 52 . . . 17 Shots 16 | . 1 5 . 2 . 1 1 4 . . 1 . . . 1 Rammed 1 | . . . . . . . . . . . . . . . 1 Targets Rammed 3 | . . 1 . . . . . . . . . 1 . . 1 Kicked 2 | . . 1 . . . . . . . . . 1 . . . Crushed . | . . . . . . . . . . . . . . . . Highest Temperature 476 | 81 216 347 466 298 . 57 268 476 227 89 117 195 . 366 274 Average Temperature 108 | 35 94 97 172 106 . 30 111 188 59 61 34 64 . 141 70 Received Heat Transfer 3480 | . 90 273 450 84 . 90 348 867 81 . 196 111 . 27 863 Effects 23 | . 2 2 12 1 . . . 5 . . . . . 1 . Shutdowns 2 | . . . 2 . . . . . . . . . . . . Energy Bleed 4 | . . . 3 1 . . . . . . . . . . . Interference 13 | . 2 2 6 . . . . 2 . . . . . 1 . Matter Decay 1 | . . . . . . . . 1 . . . . . . . Damage (minor) 3 | . . . 1 . . . . 2 . . . . . . . Siege Activations . | . . . . . . . . . . . . . . . . Robots Corrupted 8 | . . . . . . . . . . . . 5 . . 3 Combat Hostiles 8 | . . . . . . . . . . . . 5 . . 3 Parts Fried 23 | . . . . . . . . . . . . 7 . . 16 Impact Corruptions 8 | . . . . . . . . . . . . . . . 8 Robots Melted 2 | . . . 1 . . . . 1 . . . . . . . Combat Hostiles 2 | . . . 1 . . . . 1 . . . . . . . Parts Melted 14 | 2 . 1 . 2 . . 2 2 1 . 2 1 . . 1 Heat Transferred 12233 | 629 607 1358 800 1251 . 1544 950 961 807 . 1042 833 . 259 1192 Parts Sabotaged . | . . . . . . . . . . . . . . . . Parts Stolen . | . . . . . . . . . . . . . . . . Parts Stripped . | . . . . . . . . . . . . . . . . Power Chain Reactions 12 | . . 2 . . . . . . . . 1 6 . . 3 Missiles Intercepted . | . . . . . . . . . . . . . . . . Alert | -11 -10 -9 -8 -7 -6 -6 -5 -5 -5 -5 -4 -4 -4 -4 -3 ------- Run | Scr Mat Mat Mat Fac Fac DSF Fac Upp Upp Zhi Pro Fac Arm Lab Res Peak Influence 905 | 50 218 905 712 522 279 476 723 . . . . 253 114 . 585 Initial 382 | . 32 91 382 322 255 195 249 . . . . 81 112 . . Average 280 | 30 130 356 562 354 270 294 411 . . . . 112 112 . 217 Maximum Alert Level 3 | . 1 3 3 2 1 2 3 . . . . 1 . . 2 Low Security (%) 39 | 100 53 24 . 11 . . . . . . . 90 100 . 49 Level 1 32 | . 46 41 6 56 100 80 53 . . . . 9 . . 29 Level 2 24 | . . 24 80 31 . 20 40 . . . . . . . 20 Level 3 3 | . . 9 13 . . . 6 . . . . . . . . Level 4 . | . . . . . . . . . . . . . . . . Level 5 . | . . . . . . . . . . . . . . . . High Security . | . . . . . . . . . . . . . . . . Max Security . | . . . . . . . . . . . . . . . . Sterilizations 1 | . . . . . . 1 . . . . . . . . . Squads Dispatched 28 | . 2 4 1 4 . 1 2 . . . . 5 1 . 8 Investigation 4 | . 1 . . 2 . . 1 . . . . . . . . Extermination 5 | . . . . 2 . . . . . . . 1 . . 2 Reinforcement 19 | . 1 4 1 . . 1 1 . . . . 4 1 . 6 Assault . | . . . . . . . . . . . . . . . . Garrison . | . . . . . . . . . . . . . . . . Intercept . | . . . . . . . . . . . . . . . . Searches Triggered . | . . . . . . . . . . . . . . . . Construction Impeded 4 | . . 1 . . . . . . . . . 1 . . 2 Haulers Reinforced 1 | . . . . . . . . . . . . . . . 1 Active Scanning Responses . | . . . . . . . . . . . . . . . . Cargo Convoy Interrupts 1 | . . . . . . . . . . . . . . . 1 Stealth | -11 -10 -9 -8 -7 -6 -6 -5 -5 -5 -5 -4 -4 -4 -4 -3 --------- Run | Scr Mat Mat Mat Fac Fac DSF Fac Upp Upp Zhi Pro Fac Arm Lab Res Distress Signals 11 | . . . 4 . . . 1 . . . . . . . 6 Communications Jammed . | . . . . . . . . . . . . . . . . Distress Signals . | . . . . . . . . . . . . . . . . Times Spotted 277 | . 10 33 23 19 . 13 28 25 10 . 23 18 . 5 70 Peak Tracking Total 12 | . 3 7 6 5 . 5 7 11 5 . 5 8 1 4 12 Tactical Retreats 23 | . . 1 1 2 . . 2 3 2 . 5 4 . 2 1 Traps | -11 -10 -9 -8 -7 -6 -6 -5 -5 -5 -5 -4 -4 -4 -4 -3 ------- Run | Scr Mat Mat Mat Fac Fac DSF Fac Upp Upp Zhi Pro Fac Arm Lab Res Traps Triggered 7 | . 1 . . . . . 3 1 . . . . . . 2 Indirectly . | . . . . . . . . . . . . . . . . Trap Hack Attempts . | . . . . . . . . . . . . . . . . Triggered . | . . . . . . . . . . . . . . . . Disarmed . | . . . . . . . . . . . . . . . . Reprogrammed . | . . . . . . . . . . . . . . . . Reused . | . . . . . . . . . . . . . . . . Traps Extracted . | . . . . . . . . . . . . . . . . Installed . | . . . . . . . . . . . . . . . . Triggered 1 | . . . . . . . . 1 . . . . . . . Machines | -11 -10 -9 -8 -7 -6 -6 -5 -5 -5 -5 -4 -4 -4 -4 -3 ---------- Run | Scr Mat Mat Mat Fac Fac DSF Fac Upp Upp Zhi Pro Fac Arm Lab Res Machines Disabled 37 | . 1 6 2 15 . . 6 . . . . 1 . 5 1 Max in Single Turn 14 | . 1 2 1 14 . . 3 . . . . 1 . 1 1 Garrison Access 1 | . . . . 1 . . . . . . . . . . . Machines Sabotaged . | . . . . . . . . . . . . . . . . Garrisons Compromised . | . . . . . . . . . . . . . . . . Overloaded Fab Kills . | . . . . . . . . . . . . . . . . Hacking | -11 -10 -9 -8 -7 -6 -6 -5 -5 -5 -5 -4 -4 -4 -4 -3 --------- Run | Scr Mat Mat Mat Fac Fac DSF Fac Upp Upp Zhi Pro Fac Arm Lab Res Machines Accessed 35 | . 2 2 4 8 2 . 4 2 . 4 . 2 1 . 4 Terminals 20 | . 2 1 4 5 1 . 2 . . . . 1 1 . 3 Fabricators 1 | . . . . . . . . . . . . . . . 1 Repair Stations 4 | . . . . 2 1 . 1 . . . . . . . . Recycling Units 2 | . . 1 . . . . 1 . . . . . . . . Scanalyzers . | . . . . . . . . . . . . . . . . Garrison Access 2 | . . . . 1 . . . . . . . 1 . . . Total Hacks 89 | . 4 4 10 20 3 . 10 10 . 17 . 2 3 . 6 Successful 54 | . 1 1 5 8 3 . 7 10 . 17 . 1 . . 1 Failed 33 | . 3 3 4 11 . . 3 . . . . 1 3 . 5 Catastrophic 9 | . 2 . 1 1 . . . . . . . . 1 . 4 Database Lockouts 2 | . . . 1 1 . . . . . . . . . . . Manual 20 | . 2 . 7 6 . . 3 . . . . . . 1 1 Terminals 44 | . 4 3 10 12 1 . 5 . . . . 1 3 . 5 Fabricators 1 | . . . . . . . . . . . . . . . 1 Repair Stations 11 | . . . . 6 2 . 3 . . . . . . . . Recycling Units 3 | . . 1 . . . . 2 . . . . . . . . Scanalyzers . | . . . . . . . . . . . . . . . . Garrison Access 3 | . . . . 2 . . . . . . . 1 . . . Terminal Hacks 44 | . 1 . 5 5 1 . 3 10 . 17 . 1 . . 1 Record 14 | . . . . . . . . 9 . 5 . . . . . Part Schematic 4 | . . . . . . . . . . 4 . . . . . Robot Analysis 11 | . 1 . 2 3 . . 1 . . 4 . . . . . Prototype ID Bank 6 | . . . 1 . . . 1 . . 4 . . . . . Open Door 1 | . . . . . . . . 1 . . . . . . . Open DSF 2 | . . . . . 1 . 1 . . . . . . . . Unreport Threat 1 | . . . . 1 . . . . . . . . . . . Locate Traps 1 | . . . . 1 . . . . . . . . . . . Hauler Manifests 2 | . . . 1 . . . . . . . . 1 . . . Zone Layout 2 | . . . 1 . . . . . . . . . . . 1 Fabricator Hacks . | . . . . . . . . . . . . . . . . Repair Station Hacks 6 | . . . . 2 2 . 2 . . . . . . . . Scan Component 3 | . . . . 1 1 . 1 . . . . . . . . Repair 3 | . . . . 1 1 . 1 . . . . . . . . Recycling Unit Hacks 3 | . . 1 . . . . 2 . . . . . . . . Retrieve Matter 1 | . . . . . . . 1 . . . . . . . . Retrieve Components 2 | . . 1 . . . . 1 . . . . . . . . Scanalyzer . | . . . . . . . . . . . . . . . . Garrison Access Hacks 1 | . . . . 1 . . . . . . . . . . . Seal Access 1 | . . . . 1 . . . . . . . . . . . Unauthorized Hacks . | . . . . . . . . . . . . . . . . Terminals . | . . . . . . . . . . . . . . . . Fabricators . | . . . . . . . . . . . . . . . . Repair Stations . | . . . . . . . . . . . . . . . . Recycling Units . | . . . . . . . . . . . . . . . . Scanalyzers . | . . . . . . . . . . . . . . . . Garrison Access . | . . . . . . . . . . . . . . . . Data Cores Recovered 2 | . . . . 1 . . . . . . . . . . 1 Used 1 | . . . . 1 . . . . . . . . . . . Hacking Detections 25 | . 2 1 4 8 1 . 2 . . . . 2 1 . 4 Full Trace Events 4 | . 1 . . 2 . . 1 . . . . . . . . Feedback Events . | . . . . . . . . . . . . . . . . Feedback Blocked . | . . . . . . . . . . . . . . . . Robot Schematics Acquired . | . . . . . . . . . . . . . . . . Robots Built . | . . . . . . . . . . . . . . . . Authchips . | . . . . . . . . . . . . . . . . Time . | . . . . . . . . . . . . . . . . Total Robot Build Rating . | . . . . . . . . . . . . . . . . Part Schematics Acquired 4 | . . . . . . . . . . 4 . . . . . Parts Built . | . . . . . . . . . . . . . . . . Authchips . | . . . . . . . . . . . . . . . . Time . | . . . . . . . . . . . . . . . . Total Part Build Rating . | . . . . . . . . . . . . . . . . Parts Repaired 3 | . . . . 1 1 . 1 . . . . . . . . Time 51 | . . . . 16 16 . 19 . . . . . . . . Parts Recycled . | . . . . . . . . . . . . . . . . Recycled Matter . | . . . . . . . . . . . . . . . . Retrieved Matter . | . . . . . . . . . . . . . . . . Retrieved Components 2 | . . 1 . . . . 1 . . . . . . . . Parts Scanalyzed . | . . . . . . . . . . . . . . . . Part Schematics Acquired . | . . . . . . . . . . . . . . . . Parts Damaged . | . . . . . . . . . . . . . . . . Bothacking | -11 -10 -9 -8 -7 -6 -6 -5 -5 -5 -5 -4 -4 -4 -4 -3 ------------ Run | Scr Mat Mat Mat Fac Fac DSF Fac Upp Upp Zhi Pro Fac Arm Lab Res Used RIF Installer . | . . . . . . . . . . . . . . . . Robots Hacked . | . . . . . . . . . . . . . . . . Non-combat . | . . . . . . . . . . . . . . . . Combat . | . . . . . . . . . . . . . . . . Robot Hacks Applied . | . . . . . . . . . . . . . . . . Relay Couplers Released . | . . . . . . . . . . . . . . . . Fabnet Peak Effective % . | . . . . . . . . . . . . . . . . Robots Rewired 2 | . . . . . . . . 2 . . . . . . . Allies Hacked . | . . . . . . . . . . . . . . . . Hacks Repelled . | . . . . . . . . . . . . . . . . Allies | -11 -10 -9 -8 -7 -6 -6 -5 -5 -5 -5 -4 -4 -4 -4 -3 -------- Run | Scr Mat Mat Mat Fac Fac DSF Fac Upp Upp Zhi Pro Fac Arm Lab Res Total Allies 5 | . . . . . . . 3 2 . . . . . . . Largest Group 3 | . . . . . . . 3 2 . . . . . . . Highest-Rated Group 93 | . . . . . . . 93 59 . . . . . . . Highest-Rated Ally 31 | . . . . . . . 31 30 . . . . . . . Total Orders . | . . . . . . . . . . . . . . . . Ally Attacks 29 | . . . . . . . 27 2 . . . . . . . Total Damage 454 | . . . . . . . 454 . . . . . . . . Kills 4 | . . . . . . . 4 . . . . . . . . Allies Corrupted . | . . . . . . . . . . . . . . . . Allies Melted . | . . . . . . . . . . . . . . . . Intel | -11 -10 -9 -8 -7 -6 -6 -5 -5 -5 -5 -4 -4 -4 -4 -3 ------- Run | Scr Mat Mat Mat Fac Fac DSF Fac Upp Upp Zhi Pro Fac Arm Lab Res Robot Analysis Total 11 | . 1 . 2 3 . . 1 . . 4 . . . . . Derelict Logs Recovered 2 | . . . . . . . . 1 1 . . . . . . Drone Launches . | . . . . . . . . . . . . . . . . Drone Recoveries . | . . . . . . . . . . . . . . . . Exploration | -11 -10 -9 -8 -7 -6 -6 -5 -5 -5 -5 -4 -4 -4 -4 -3 ------------- Run | Scr Mat Mat Mat Fac Fac DSF Fac Upp Upp Zhi Pro Fac Arm Lab Res Turns Passed 12396 | 238 345 792 756 1135 77 265 452 2644 1478 385 922 1183 163 316 1245 Spaces Moved 4359 | 63 155 272 226 568 32 90 228 660 408 176 297 489 114 132 449 Core 27 | . . . . . . . . 2 . . . . . . 25 Treads 2098 | . . 174 226 568 32 90 228 658 122 . . . . . . Legs 1410 | 63 155 98 . . . . . . 286 174 269 237 . . 128 Wheels 806 | . . . . . . . . . . . 13 252 114 132 295 Hover 1 | . . . . . . . . . . . . . . . 1 Flight 17 | . . . . . . . . . . 2 15 . . . . Fastest Speed 50 | 120 120 160 160 162 165 155 151 50 193 193 190 130 130 130 50 Average Speed 221 | 120 179 183 234 169 165 157 156 368 339 197 260 165 130 145 147 Slowest Speed 835 | 120 190 240 243 243 165 165 158 400 470 835 470 260 130 190 240 Overloaded Moves . | . . . . . . . . . . . . . . . . Propulsion Burnouts . | . . . . . . . . . . . . . . . . Robots Hopped . | . . . . . . . . . . . . . . . . Cave-ins Triggered 1 | . . . . . . . 1 . . . . . . . . Teleports 2 | . . . . . . . . . . . . . 1 1 . Exploration Rate (%) 37 | 3 40 39 31 21 1 70 8 84 67 60 51 15 8 94 12 Regions Visited 15 Branch Regions 6 Pre-discovered Areas 6 | . . . . . . . . 2 1 3 . . . . . Known Exits Taken 5 | . . . . . 1 . 1 . . . . 1 1 1 . Unknown Exits Taken 9 | 1 1 1 1 1 . . . 1 1 1 1 . . . . Scrap Searched 4 | . . . . . . . . 3 1 . . . . . . Spaces Dug 71 | . . . 6 2 . 1 . 2 4 . 1 36 1 . 18 Terrain Destroyed 345 | . . 36 14 9 . 28 57 45 5 . 12 44 1 . 94 Melee 60 | . . . . 2 . 1 . 2 4 . 1 35 1 . 14 Projectile 98 | . . . 14 . . . 4 17 1 . 7 8 . . 47 AOE 181 | . . 36 . 7 . 27 53 26 . . 4 1 . . 27 Terrain Rammed . | . . . . . . . . . . . . . . . . Walls Destroyed . | . . . . . . . . . . . . . . . . Machines Disabled . | . . . . . . . . . . . . . . . . Actions | -11 -10 -9 -8 -7 -6 -6 -5 -5 -5 -5 -4 -4 -4 -4 -3 --------- Run | Scr Mat Mat Mat Fac Fac DSF Fac Upp Upp Zhi Pro Fac Arm Lab Res Total 5927 | 185 189 450 360 680 55 168 286 758 462 200 368 743 126 204 693 Wait 426 | 98 3 65 32 31 16 . 24 4 20 . 16 95 10 7 5 Move 4344 | 62 154 271 225 567 31 89 227 659 407 175 296 488 113 131 449 Hop . | . . . . . . . . . . . . . . . . Pick Up 133 | 3 6 10 12 14 1 10 4 10 8 2 3 30 . 5 15 Fast Attach 118 | 1 . 7 5 7 2 3 1 19 1 9 6 20 . 13 24 Attach 80 | . . 4 3 8 2 3 6 7 5 . 9 12 1 3 17 Detach 13 | . . . . . . 2 . 2 . 3 . 1 . 4 1 Swap 103 | . 5 12 15 11 2 11 3 5 4 . 2 8 1 5 19 Drop 130 | 1 3 19 18 12 1 18 2 1 . 5 . 27 . 12 11 Fire 460 | 20 18 61 50 28 . 31 19 34 12 . 28 23 . 21 115 Melee 106 | . . . . 2 . 1 . 14 5 6 8 38 1 3 28 Ram 1 | . . . . . . . . . . . . . . . 1 Kick 2 | . . 1 . . . . . . . . . 1 . . . Crush . | . . . . . . . . . . . . . . . . Escape Stasis 8 | . . . . . . . . . . . . . . . 8 Rewire 3 | . . . . . . . . 3 . . . . . . . Trap . | . . . . . . . . . . . . . . . . Miscellaneous . | . . . . . . . . . . . . . . . . Route ------- -11/Scrapyard -10/Materials -9/Materials (discovered 2 exits: *Mat / [*Min]) -8/Materials -7/Factory -6/Factory -6/DSF -5/Factory -5/Upper Caves -5/Upper Caves (discovered 2 exits: *Fac / *Zhi) -5/Zhirov -4/Proximity Caves -4/Factory (discovered 2 exits: Res / *Arm) -4/Armory -4/Lab -3/Research (discovered 1 exit: Qua) History --------- Turn | Location | Event 32 | -11/Scrapyard | Discovered new exit (range 2) 239 | -11/Scrapyard | Entered Materials 308 | -10/Materials | Build established: Mutant 390 | -10/Materials | Core integrity fell below 50% 552 | -10/Materials | Discovered new exit (range 16) 584 | -10/Materials | Entered another Materials area 584 | -9/Materials | Evolved 2 slots: Utility x1, Weapon x1 939 | -9/Materials | Discovered new exit (range 15) 1280 | -9/Materials | Build established: Scavenger-Skirmisher 1322 | -9/Materials | Destroyed 7 combat bots 1364 | -9/Materials | Discovered new exit (range 5) 1376 | -9/Materials | Entered another Materials area 1376 | -8/Materials | Evolved 2 slots: Propulsion x1, Utility x1 1822 | -8/Materials | Central database locked down 1972 | -8/Materials | Build established: Scavenger-Tank 2106 | -8/Materials | Discovered new exit (range 3) 2132 | -8/Materials | Entered Factory 2132 | -7/Factory | Evolved 2 slots: Propulsion x1, Weapon x1 2220 | -7/Factory | Central database locked down 2846 | -7/Factory | Repaired Imp. Treads 2935 | -7/Factory | Discovered new exit (range 16) 3008 | -7/Factory | Lost 6 parts (1n1u4w) 3267 | -7/Factory | Entered another Factory area 3267 | -6/Factory | Evolved 2 slots: Utility x2 3310 | -6/Factory | Repaired Imp. Treads 3341 | -6/Factory | Identified exit to DSF 3344 | -6/Factory | Entered DSF 3404 | -6/DSF | Additional patrols routed to DSF 3566 | -6/DSF | Sterilization system engaged 3579 | -6/DSF | Discovered new exit (range 14) 3586 | -6/DSF | Ambient heat levels rising (+10) 3589 | -6/DSF | Destroyed 7 combat bots 3601 | -6/DSF | Ambient heat levels rising (+10) 3606 | -6/DSF | Identified exit to Factory 3609 | -6/DSF | Entered Factory 3609 | -5/Factory | Evolved 2 slots: Propulsion x1, Weapon x1 3832 | -5/Factory | Repaired Adv. Treads 3864 | -5/Factory | Discovered new exit (range 16) 3956 | -5/Factory | Lost 3 parts (1p2n) 3966 | -5/Factory | Allied Derelicts emerged from ambush trap array 4033 | -5/Factory | Crushed by falling debris 4060 | -5/Factory | Identified exit to Upper Caves 4061 | -5/Factory | Entered Upper Caves 4069 | -5/Upper Caves | Attracted the attention of an 0b10 checkpoint 4176 | -5/Upper Caves | Destroyed 8 combat bots 4208 | -5/Upper Caves | Lost 11 parts (1p4n2u4w) 4315 | -5/Upper Caves | Attracted the attention of an 0b10 outpost 4364 | -5/Upper Caves | Released all parts (8) 4386 | -5/Upper Caves | Lost 6 parts (1p1n3u1w) 4649 | -5/Upper Caves | Build established: Scavenger-Assassin 5509 | -5/Upper Caves | Build established: Scavenger-Mutant 5807 | -5/Upper Caves | Learned location of 1 exit from Research 5807 | -5/Upper Caves | Learned Extension emergency access door positions 5807 | -5/Upper Caves | Learned Extension stockpile data 5807 | -5/Upper Caves | Learned Research security intel 5807 | -5/Upper Caves | Learned Factory terminal intel 5807 | -5/Upper Caves | Learned Armory garrison access intel 6533 | -5/Upper Caves | Encountered a Warlord checkpoint 6596 | -5/Upper Caves | Build established: Scavenger-Assassin 6679 | -5/Upper Caves | Discovered new exit (range 9) 6705 | -5/Upper Caves | Entered another Upper Caves area 6720 | -5/Upper Caves | Discovered new exit (range 6) 7043 | -5/Upper Caves | Build established: Scavenger-Tank 7099 | -5/Upper Caves | Lost 3 parts (2n1u) 7394 | -5/Upper Caves | Learned location of Armory (-4) 8076 | -5/Upper Caves | Discovered new exit (range 9) 8183 | -5/Upper Caves | Entered Zhirov 8183 | -5/Zhirov | Discovered new exit (range 3) 8222 | -5/Zhirov | Met Zhirov 8266 | -5/Zhirov | Learned location of Quarantine (-3) 8266 | -5/Zhirov | Learned location of Testing (-2) 8266 | -5/Zhirov | Learned location of Command (-1) 8278 | -5/Zhirov | Zhirov requested help retrieving the SGEMP Prototype 8307 | -5/Zhirov | Found Alien Artifact 8307 | -5/Zhirov | Identified Integrated Reactor 8307 | -5/Zhirov | Installed Integrated Reactor, increased core energy generation (+10) 8330 | -5/Zhirov | Found Alien Artifact 8568 | -5/Zhirov | Entered Proximity Caves 8867 | -4/Proximity Caves | Build established: Scavenger-Skirmisher 8962 | -4/Proximity Caves | Attracted the attention of an 0b10 checkpoint 9001 | -4/Proximity Caves | Lost 4 parts (1n1u2w) 9338 | -4/Proximity Caves | Lost 7 parts (1n1u5w) 9409 | -4/Proximity Caves | Discovered new exit (range 12) 9429 | -4/Proximity Caves | Core integrity fell below 50% 9467 | -4/Proximity Caves | Lost 3 parts (1n2u) 9490 | -4/Proximity Caves | Entered Factory 9490 | -4/Factory | Evolved 2 slots: Propulsion x1, Weapon x1 9491 | -4/Factory | Identified exit to Research 9492 | -4/Factory | Loaded intel: 26 terminal locations 9625 | -4/Factory | Found Imp. Powered Armor 9628 | -4/Factory | Found Imp. Powered Armor 9631 | -4/Factory | Found Imp. Powered Armor 9634 | -4/Factory | Found Imp. Powered Armor 10137 | -4/Factory | Lost 11 parts (5n2u4w) 10289 | -4/Factory | Lost 3 parts (1p1u1w) 10551 | -4/Factory | Build established: Scavenger-Mutant 10632 | -4/Factory | Discovered new exit (range 10) 10672 | -4/Factory | Identified exit to Armory 10673 | -4/Factory | Entered Armory 10833 | -4/Armory | Identified Transdimensional Reconstructor 10833 | -4/Armory | Warped through subspace to slip node 10833 | -4/Armory | Discovered new exit (range 1) 10833 | -4/Armory | Identified exit to Lab 10836 | -4/Armory | Entered Lab 10836 | -4/Lab | Discovered exit to Research (range 9) 10853 | -4/Lab | Unable to decrypt terminal 10853 | -4/Lab | Opened the door to a hidden lab 10854 | -4/Lab | Gained access to the hidden lab's interior 10857 | -4/Lab | Unable to decrypt terminal 10863 | -4/Lab | Detected by scanners 10872 | -4/Lab | Confronted by A5 10873 | -4/Lab | Disabled Active System Cloaker 10882 | -4/Lab | System corruption reached 10% 10952 | -4/Lab | MAIN.C forces arrive to investigate 11016 | -4/Lab | Found Transdimensional Reconstructor 11016 | -4/Lab | Warped through subspace 11037 | -4/Lab | Found Prototype Energy Cannon 11037 | -4/Lab | Identified Potential Cannon 11043 | -4/Lab | Found Prototype Energy Gun 11043 | -4/Lab | Identified Tachyon Dispersion Ray 11059 | -4/Lab | Found Prototype Protection 11059 | -4/Lab | Identified Hvy. Regenerative Plating 11067 | -4/Lab | Found Prototype Hackware 11093 | -4/Lab | Found Alien Artifact 11093 | -4/Lab | Identified Core Expander 11093 | -4/Lab | Installed Core Expander, added new Utility slot 11106 | -4/Lab | Found Integrated Reactor 11106 | -4/Lab | Installed Integrated Reactor, increased core energy generation (+10) 11152 | -4/Lab | Entered Research 11152 | -3/Research | Evolved 2 slots: Power x1, Utility x1 11153 | -3/Research | Identified exit to Quarantine 11185 | -3/Research | Identified Quantum Router 11903 | -3/Research | Destroyed 7 combat bots 11903 | -3/Research | Lost 5 parts (1p1n2u1w) 12068 | -3/Research | System corruption reached 10% 12110 | -3/Research | Lost 6 parts (1p1n4w) 12209 | -3/Research | Cargo convoy interrupted 12257 | -3/Research | System corruption reached 30% 12274 | -3/Research | Destroyed 9 combat bots 12290 | -3/Research | Core integrity fell below 50% 12341 | -3/Research | Lost 30 parts (2p9n11u8w) 12372 | -3/Research | Core integrity fell below 20% 12380 | -3/Research | Released all parts (10) 12397 | -3/Research | Destroyed by X-87 Electro with Compact HERF Cannon Last Messages --------------- 12379_ Myomer Leg destroyed. 12379_ Coil Gun destroyed. 12379_ Imp. Antigrav System destroyed. 12380_ Released Com. Mass Driver. 12380_ Released Coil Gun. 12380_ Released Adv. Target Analyzer. 12380_ Released Adv. Myomer Leg. 12380_ Released Quantum Router. 12380_ Released Adv. Signal Interpreter. 12380_ Released Adv. Heat Sink. 12380_ Released Mic. Antimatter Reactor. 12380_ Released Com. Mass Driver. 12380_ Released Myomer Leg. 12380_ Acquired 3 matter. 12381_ W-44 Eye sends out distress signal. 12381_ Acquired Adv. Myomer Leg. 12384_ Adv. Myomer Leg destroyed. 12395_ U-05 Engineer destroyed. 12396_ R-10 Processor collects Mic. Antimatter Reactor. 12397_ System corrupted: Heat flow error (+157). Map ----- +----------------------------------------------------+ | ?????????????????????????????????????????????????? | | ?????????????????????????????????????????????????? | | ?????????????????????????????????????????????????? | | ?????????????????????????????????????????????????? | | ?????????????????????????????????????????????????? | | ?????????????????????????????????????????????????? | | ???????????????????????????? ????????????????????? | | ???????????????????????????? ????????????????????? | | ???????????????????????????? ????????????????????? | | ???????????????????????????? ????????????????????? | | ???????????????????????????? ????????????????????? | | ???????????????????????????? ????????????????????? | | ???????????????????+######? %????????????????????? | | ???????????????????? ###+#?#?????????????????? | | ????????????????????? # #=## ?????????????????? | | ??????????????????????# #[#[# #?????????????????? | | ??????????????######### #%#%#!#?????????????????? | | ??????????????# ## #!#%#!##????????????????? | | ??????????????# / !#*#+####????????????????? | | ??????????????# ## !##%!%%##????????????????? | | ??????????????# ## !#=%%%!#"????????????????? | | ??????????????# ##u!##% ##????????????????? | | ???????#??????# ##g ##%% #?????????????????? | | ???????# #######+## %=+%!%%##????????????????? | | ???????+ uugR []#% /#"????????????????? | | ???????# ^ x =@#! %[##????????????????? | | ???????#! #!!==##????????????????? | | ???????# #==!=##????>???????????? | | ???????# #######????????????????? | | ???????# R #??????????????????????? | | ???????# """"""" #??????????????????????? | | ???????# """"""" #??????????????????????? | | ???????# """"""" u #??????????????????????? | | ???????# w k #??????????????????????? | | ???????# | g #??????????????????????? | | ???????# g #??????????????????????? | | ???????????###########kg #??????????????????????? | | ????????###########??# #??????????????????????? | | ????????# ?# #??????????????????????? | | ????????# ! #u #?????????????########## | | ????????# + #?????????????# | | ????????# # #?????????????# | | ????????# =% # #?????????????#=! | | ????????####### !# !## ###############*%= | | ??????????? % !%= [%*%! ## | | ?????????? = == * ^ =% % #? | | ????????? =%%%= [ ^ [%=!= #? | | ??????????? %= !% !*^ ! #? | | ??????????? ## =#[ #########+########### #? | | ????????????# ???????????????###??# #? | +----------------------------------------------------+ Best States ------------- Heat Dissipation 96 Coolant Potential 100 Energy Generation 57 Energy Capacity 670 Matter Stores 300 Matter Capacity 300 Sight Range 16 Robot Scan Range 16 Terrain Scan Range 16 Terrain Scan Density 210 Additional Mass Support 16 EM Shielding 3 Corruption Containment 8 Armor Coverage 1000 Resistance: KI 20 Weapon Shielding 90 Phase Shifting 15 Evasion (%) 55 Targeting Accuracy 12 Melee Accuracy 6 Target Analysis 8 Armor Integrity Analysis 30 Recoil Reduction 5 Offensive Hacking 26 Defensive Hacking 25 Item Schematics ----------------- Assault Drone Bay | -5/Zhirov | Free Exp. Heat Sink | -5/Zhirov | Free Exp. Optical Array | -5/Zhirov | Free Imp. Arc Thrower | -5/Zhirov | Free Robot Schematics ------------------ None Fabricated ------------ Nothing Alien Tech Used ----------------- Integrated Reactor Transdimensional Reconstructor Core Expander Achievements -------------- None Challenges ------------ None Game ------ Seed ForcePoweredBooster Manual? 0 Play Time 02:39:01 Cumulative 601.8 hours Start 2022.03.26 @ 04:18:42 End 2022.03.26 @ 12:05:21 Sessions 5 Manual Loads 0 Difficulty Rogue Special Mode None Game No. 148 Rogue 117 Adventurer 31 Explorer 0 Win Type - Total 29 Types 24/0/2/3/0/0/0/0/0 Lore% 75 Gallery% 83 Achievement% 66 Wizard Run 0 Options --------- ASCII 0 Keyboard 0 Movement Arrows Keybinds 0 Fullscreen 1 Font 20/Terminus Map View 66x50 Tactical HUD 1 Map Filters NONE Filters NONE Steam 1 RUN: 4bcfc9c8-c797-444b-a285-835040925a48